fUSD/lending_fUSD_20250617
["ID","MTS","AMOUNT","RATE_DAILY","PERIOD"]
[366309943,1750181450320,-528.42,0.00016438,2]
[366309945,1750181450329,-561.14,0.00016438,2]
[366309947,1750181450339,-490.0,0.00016438,2]
[366309949,1750181450348,-490.0,0.00016438,2]
[366309951,1750181450358,-490.0,0.00016438,2]
[366309953,1750181450368,-795.56,0.00016438,2]
[366309955,1750181450377,-589.6461952,0.00016438,2]
[366309957,1750181450388,-3044.88,0.00016438,2]
[366309959,1750181450399,-1827.42,0.00016438,2]
[366309961,1750181450410,-3441.07,0.00016438,2]
[366309963,1750181450419,-1534.16,0.00016438,2]
[366309965,1750181450429,-490.0,0.00016438,2]
[366309968,1750181450439,-1534.16,0.00016438,2]
[366309969,1750181450449,-1534.16,0.00016438,2]
[366309972,1750181450458,-490.0,0.00016438,2]
[366309974,1750181450469,-490.0,0.00016438,2]
[366309976,1750181450479,-490.0,0.00016438,2]
[366309977,1750181450489,-490.0,0.00016438,2]
[366309978,1750181450498,-698.89,0.00016438,2]
[366309979,1750181450506,-490.0,0.00016438,2]
[366309980,1750181450516,-2032.75,0.00016438,2]
[366309981,1750181450525,-490.0,0.00016438,2]
[366309982,1750181450534,-2882.68,0.00016438,2]
[366309983,1750181450543,-490.0,0.00016438,2]
[366309984,1750181450552,-759.21,0.00016438,2]
[366309985,1750181450562,-490.0,0.00016438,2]
[366309986,1750181450571,-432.29025833,0.00016438,2]
[366309987,1750181450581,-490.0,0.00016438,2]
[366309988,1750181450591,-490.0,0.00016438,2]
[366309989,1750181450602,-490.0,0.00016438,2]
[366309990,1750181450611,-490.0,0.00016438,2]
[366309991,1750181450622,-690.36,0.00016438,2]
[366309992,1750181450631,-1810.76,0.00016438,2]
[366309993,1750181450642,-490.0,0.00016438,2]
[366309994,1750181450652,-490.0,0.00016438,2]
[366309995,1750181450662,-490.0,0.00016438,2]
[366309996,1750181450673,-490.0,0.00016438,2]
[366309997,1750181450683,-1231.22,0.00016438,2]
[366309998,1750181450693,-668.71,0.00016438,2]
[366309999,1750181450703,-490.0,0.00016438,2]
[366310000,1750181450713,-490.0,0.00016438,2]
[366310001,1750181450723,-3447.92,0.00016438,2]
[366310002,1750181450732,-3110.4947597,0.00016438,2]
[366310003,1750181450763,-168.9552403,0.00016438,2]
[366310004,1750181450773,-490.0,0.00016438,2]
[366310005,1750181450782,-1351.11,0.00016438,2]
[366310006,1750181450793,-635.14,0.00016438,2]
[366310007,1750181450803,-490.0,0.00016438,2]
[366310008,1750181450813,-490.0,0.00016438,2]
[366310009,1750181450822,-490.0,0.00016438,2]
[366310010,1750181450832,-490.0,0.00016438,2]
[366310011,1750181450842,-490.0,0.00016438,2]
[366310012,1750181450851,-490.0,0.00016438,2]
[366310013,1750181450861,-1532.78,0.00016438,2]
[366310014,1750181450871,-3379.83,0.00016438,2]
[366310015,1750181450881,-1245.38,0.00016438,2]
[366310016,1750181450892,-7848.1,0.00016438,2]
[366310017,1750181450902,-1322.83,0.00016438,2]
[366310018,1750181450911,-490.0,0.00016438,2]
[366310019,1750181450921,-490.0,0.00016438,2]
[366310020,1750181450931,-2120.81,0.00016438,2]
[366310021,1750181450940,-205.18714598,0.00016438,2]
[366310022,1750181450950,-1072.09,0.00016438,2]
[366310023,1750181450959,-490.0,0.00016438,2]
[366310024,1750181450968,-490.0,0.00016438,2]
[366310025,1750181450978,-490.0,0.00016438,2]
[366310026,1750181450988,-1288.44,0.00016438,2]
[366310027,1750181450998,-829.6,0.00016438,2]
[366310028,1750181451008,-490.0,0.00016438,2]
[366310029,1750181451018,-490.0,0.00016438,2]
[366310030,1750181451027,-490.0,0.00016438,2]
[366310031,1750181451037,-490.0,0.00016438,2]
[366310032,1750181451047,-1361.36,0.00016438,2]
[366310033,1750181451057,-490.0,0.00016438,2]
[366310034,1750181451066,-450.0,0.00016438,2]
[366310035,1750181451076,-490.0,0.00016438,2]
[366310036,1750181451085,-4975.15,0.00016438,2]
[366310037,1750181451095,-490.0,0.00016438,2]
[366310038,1750181451104,-490.0,0.00016438,2]
[366310039,1750181451114,-1244.48,0.00016438,2]
[366310040,1750181451124,-907.32,0.00016438,2]
[366310041,1750181451133,-1384.64,0.00016438,2]
[366310042,1750181451146,-490.0,0.00016438,2]
[366310043,1750181451161,-490.0,0.00016438,2]
[366310044,1750181451171,-490.0,0.00016438,2]
[366310045,1750181451181,-490.0,0.00016438,2]
[366310046,1750181451191,-1388.32,0.00016438,2]
[366310047,1750181451201,-490.0,0.00016438,2]
[366310048,1750181451211,-573.49,0.00016438,2]
[366310049,1750181451225,-490.0,0.00016438,2]
[366310050,1750181451236,-605.57,0.00016438,2]
[366310051,1750181451247,-2093.0,0.00016438,2]
[366310052,1750181451258,-2070.8,0.00016438,2]
[366310053,1750181451268,-1336.56,0.00016438,2]
[366310054,1750181451278,-1073.31,0.00016438,2]
[366310055,1750181451289,-1705.42,0.00016438,2]
[366310056,1750181451300,-1690.97,0.00016438,2]
[366310057,1750181451310,-490.0,0.00016438,2]
[366310058,1750181451320,-1351.59,0.00016438,2]
[366310059,1750181451329,-490.0,0.00016438,2]
[366310060,1750181451339,-490.0,0.00016438,2]
[366310061,1750181451349,-490.0,0.00016438,2]
[366310062,1750181451359,-490.0,0.00016438,2]
[366310063,1750181451369,-1057.21,0.00016438,2]
[366310064,1750181451379,-490.0,0.00016438,2]
[366310065,1750181451392,-572.89,0.00016438,2]
[366310066,1750181451402,-2135.31671645,0.00016438,2]
[366310067,1750181451416,-20221.71328355,0.00016438,2]
[366310068,1750181451426,-1130.0,0.00016438,2]
[366310069,1750181451435,-490.0,0.00016438,2]
[366310070,1750181451445,-490.0,0.00016438,2]
[366310071,1750181451454,-676.78,0.00016438,2]
[366310072,1750181451464,-745.04,0.00016438,2]
[366310073,1750181451473,-490.0,0.00016438,2]
[366310074,1750181451483,-854.29,0.00016438,2]
[366310075,1750181451493,-88.51636465,0.00016438,2]
[366310076,1750181451505,-298.354,0.00016438,2]
[366310077,1750181451529,-103.12963535,0.00016438,2]
[366310078,1750181451539,-490.0,0.00016438,2]
[366310079,1750181451550,-80.44651862,0.00016438,2]
[366310080,1750181451562,-354.81706487,0.00016438,2]
[366310081,1750181451571,-490.0,0.00016438,2]
[366310082,1750181451581,-1657.0,0.00016438,2]
[366310083,1750181451590,-490.0,0.00016438,2]
[366310084,1750181451600,-1340.0,0.00016438,2]
[366310085,1750181451610,-1266.25,0.00016438,2]
[366310086,1750181451619,-695.44,0.00016438,2]
[366310087,1750181451629,-490.0,0.00016438,2]
[366310088,1750181451640,-490.0,0.00016438,2]
[366310089,1750181451649,-490.0,0.00016438,2]
[366310090,1750181451660,-490.0,0.00016438,2]
[366310091,1750181451670,-490.0,0.00016438,2]
[366310092,1750181451680,-490.0,0.00016438,2]
[366310093,1750181451689,-490.0,0.00016438,2]
[366310094,1750181451699,-3356.20958513,0.00016438,2]
[366310095,1750181451723,-43.64041487,0.00016438,2]
[366310096,1750181451732,-490.0,0.00016438,2]
[366310097,1750181451742,-551.74,0.00016438,2]
[366310098,1750181451752,-2403.61,0.00016438,2]
[366310099,1750181451762,-490.0,0.00016438,2]
[366310100,1750181451772,-1062.8,0.00016438,2]
[366310101,1750181451781,-159.005632,0.00016438,2]
[366310102,1750181451791,-647.93,0.00016438,2]
[366310103,1750181451801,-158.765341,0.00016438,2]
[366310104,1750181451810,-490.0,0.00016438,2]
[366310105,1750181451820,-490.0,0.00016438,2]
[366310106,1750181451831,-627.12,0.00016438,2]
[366310107,1750181451841,-689.52,0.00016438,2]
[366310108,1750181451850,-592.55,0.00016438,2]
[366310109,1750181451860,-783.46,0.00016438,2]
[366310110,1750181451869,-4570.23,0.00016438,2]
[366310111,1750181451878,-4791.3,0.00016438,2]
[366310112,1750181451889,-2435.71,0.00016438,2]
[366310113,1750181451898,-490.0,0.00016438,2]
[366310114,1750181451907,-162.81244,0.00016438,2]
[366310115,1750181451917,-490.0,0.00016438,2]
[366310116,1750181451927,-493.49,0.00016438,2]
[366310117,1750181451936,-1792.92,0.00016438,2]
[366310118,1750181451946,-490.0,0.00016438,2]
[366310119,1750181451956,-839.91,0.00016438,2]
[366310120,1750181451966,-379.32046307,0.00016438,2]
[366310121,1750181451975,-896.29,0.00016438,2]
[366310122,1750181451984,-646.61,0.00016438,2]
[366310123,1750181451994,-490.0,0.00016438,2]
[366310124,1750181452003,-911.9,0.00016438,2]
[366310125,1750181452012,-2364.43,0.00016438,2]
[366310126,1750181452023,-490.0,0.00016438,2]
[366310127,1750181452032,-656.41,0.00016438,2]
[366310128,1750181452041,-1078.48,0.00016438,2]
[366310129,1750181452051,-490.0,0.00016438,2]
[366310130,1750181452061,-510.58,0.00016438,2]
[366310131,1750181452071,-1354.18,0.00016438,2]
[366310132,1750181452080,-701.64,0.00016438,2]
[366310133,1750181452090,-490.0,0.00016438,2]
[366310134,1750181452100,-490.0,0.00016438,2]
[366310135,1750181452110,-1637.09,0.00016438,2]
[366310136,1750181452119,-1140.12,0.00016438,2]
[366310137,1750181452129,-490.0,0.00016438,2]
[366310138,1750181452140,-490.0,0.00016438,2]
[366310139,1750181452149,-490.0,0.00016438,2]
[366310140,1750181452159,-963.61,0.00016438,2]
[366310141,1750181452168,-490.0,0.00016438,2]
[366310142,1750181452178,-490.0,0.00016438,2]
[366310143,1750181452187,-490.0,0.00016438,2]
[366310144,1750181452196,-490.0,0.00016438,2]
[366310145,1750181452206,-8296.72,0.00016438,2]
[366310146,1750181452215,-1020.38,0.00016438,2]
[366310147,1750181452227,-490.0,0.00016438,2]
[366310148,1750181452236,-1275.22,0.00016438,2]
[366310149,1750181452245,-155.52921,0.00016438,2]
[366310150,1750181452256,-490.0,0.00016438,2]
[366310151,1750181452266,-490.0,0.00016438,2]
[366310152,1750181452276,-2529.64,0.00016438,2]
[366310153,1750181452286,-2635.69,0.00016438,2]
[366310154,1750181452297,-490.0,0.00016438,2]
[366310155,1750181452307,-980.65,0.00016438,2]
[366310156,1750181452317,-490.0,0.00016438,2]
[366310157,1750181452326,-490.0,0.00016438,2]
[366310158,1750181452336,-1314.44,0.00016438,2]
[366310159,1750181452346,-490.0,0.00016438,2]
[366310160,1750181452355,-490.0,0.00016438,2]
[366310161,1750181452365,-948.37905388,0.00016438,2]
[366310162,1750181452379,-650.48094612,0.00016438,2]
[366310163,1750181452391,-490.0,0.00016438,2]
[366310164,1750181452400,-5535.44,0.00016438,2]
[366310165,1750181452409,-1215.64,0.00016438,2]
[366310166,1750181452418,-3535.09,0.00016438,2]
[366310167,1750181452429,-308.13434532,0.00016438,2]
[366310168,1750181452438,-9483.43,0.00016438,2]
[366310169,1750181452447,-798.31,0.00016438,2]
[366310170,1750181452456,-490.0,0.00016438,2]
[366310171,1750181452466,-490.0,0.00016438,2]
[366310172,1750181452475,-782.09,0.00016438,2]
[366310173,1750181452485,-1227.77,0.00016438,2]
[366310174,1750181452494,-1613.93,0.00016438,2]
[366310175,1750181452504,-490.0,0.00016438,2]
[366310176,1750181452514,-490.0,0.00016438,2]
[366310177,1750181452523,-490.0,0.00016438,2]
[366310178,1750181452533,-490.0,0.00016438,2]
[366310179,1750181452542,-490.0,0.00016438,2]
[366310180,1750181452553,-1995.87,0.00016438,2]
[366310181,1750181452564,-490.0,0.00016438,2]
[366310182,1750181452579,-850.51,0.00016438,2]
[366310183,1750181452589,-2393.83,0.00016438,2]
[366310184,1750181452600,-490.0,0.00016438,2]
[366310185,1750181452610,-490.0,0.00016438,2]
[366310186,1750181452621,-1106.37,0.00016438,2]
[366310187,1750181452631,-4707.69,0.00016438,2]
[366310188,1750181452642,-490.0,0.00016438,2]
[366310189,1750181452653,-490.0,0.00016438,2]
[366310190,1750181452662,-493.78762477,0.00016438,2]
[366310191,1750181452672,-490.0,0.00016438,2]
[366310192,1750181452682,-490.0,0.00016438,2]
[366310193,1750181452693,-3586.35,0.00016438,2]
[366310194,1750181452703,-3721.37,0.00016438,2]
[366310195,1750181452712,-1752.8,0.00016438,2]
[366310196,1750181452722,-5621.19,0.00016438,2]
[366310197,1750181452732,-490.0,0.00016438,2]
[366310198,1750181452742,-490.0,0.00016438,2]
[366310199,1750181452751,-490.0,0.00016438,2]
[366310200,1750181452761,-1662.73,0.00016438,2]
[366310201,1750181452771,-490.0,0.00016438,2]
[366310202,1750181452781,-6102.02,0.00016438,2]
[366310203,1750181452791,-490.0,0.00016438,2]
[366310204,1750181452800,-490.0,0.00016438,2]
[366310205,1750181452810,-490.0,0.00016438,2]
[366310206,1750181452819,-490.0,0.00016438,2]
[366310207,1750181452829,-490.0,0.00016438,2]
[366310208,1750181452838,-7174.01,0.00016438,2]
[366310209,1750181452847,-490.0,0.00016438,2]
[366310210,1750181452857,-490.0,0.00016438,2]
[366310211,1750181452867,-490.0,0.00016438,2]
[366310212,1750181452876,-490.0,0.00016438,2]
[366310213,1750181452887,-490.0,0.00016438,2]
[366310214,1750181452897,-4005.12,0.00016438,2]
[366310215,1750181452906,-1607.53,0.00016438,2]
[366310216,1750181452916,-490.5,0.00016438,2]
[366310217,1750181452925,-490.0,0.00016438,2]
[366310218,1750181452934,-700.38,0.00016438,2]
[366310219,1750181452944,-1723.39,0.00016438,2]
[366310220,1750181452953,-1275.09,0.00016438,2]
[366310221,1750181452962,-807.05,0.00016438,2]
[366310222,1750181452973,-490.0,0.00016438,2]
[366310223,1750181452982,-490.0,0.00016438,2]
[366310224,1750181452991,-490.0,0.00016438,2]
[366310225,1750181453001,-490.0,0.00016438,2]
[366310226,1750181453011,-490.0,0.00016438,2]
[366310227,1750181453021,-490.0,0.00016438,2]
[366310228,1750181453031,-490.0,0.00016438,2]
[366310229,1750181453040,-490.0,0.00016438,2]
[366310230,1750181453050,-314.75,0.00016438,2]
[366310231,1750181453059,-490.0,0.00016438,2]
[366310232,1750181453068,-490.0,0.00016438,2]
[366310233,1750181453078,-990.67,0.00016438,2]
[366310234,1750181453087,-293.62228979,0.00016438,2]
[366310235,1750181453132,-1014.19771021,0.00016438,2]
[366310236,1750181453145,-137.52807232,0.00016438,2]
[366310237,1750181454573,-451.65192768,0.00016438,2]
[366310238,1750181454583,-1916.97,0.00016438,2]
[366310239,1750181454593,-490.0,0.00016438,2]
[366310240,1750181454603,-490.0,0.00016438,2]
[366310241,1750181454612,-402.58148544,0.00016438,2]
[366310242,1750181454622,-490.0,0.00016438,2]
[366310243,1750181454632,-490.0,0.00016438,2]
[366310244,1750181454643,-109.95418689,0.00016438,2]
[366310245,1750181454656,-380.04581311,0.00016438,2]
[366310246,1750181454666,-490.0,0.00016438,2]
[366310247,1750181454676,-947.6,0.00016438,2]
[366310248,1750181454686,-846.67,0.00016438,2]
[366310249,1750181454696,-490.0,0.00016438,2]
[366310250,1750181454706,-485.70841072,0.00016438,2]
[366310251,1750181454715,-490.0,0.00016438,2]
[366310252,1750181454725,-490.0,0.00016438,2]
[366310253,1750181454735,-155.52921,0.00016438,2]
[366310254,1750181454745,-564.4094927,0.00016438,2]
[366310255,1750181454754,-523.92,0.00016438,2]
[366310256,1750181454764,-490.0,0.00016438,2]
[366310257,1750181454774,-490.0,0.00016438,2]
[366310258,1750181454784,-6735.87,0.00016438,2]
[366310259,1750181454793,-490.0,0.00016438,2]
[366310260,1750181454803,-2615.59,0.00016438,2]
[366310261,1750181454812,-490.0,0.00016438,2]
[366310262,1750181454822,-490.0,0.00016438,2]
[366310263,1750181454831,-421.31116083,0.00016438,2]
[366310264,1750181454841,-490.0,0.00016438,2]
[366310265,1750181454851,-490.0,0.00016438,2]
[366310266,1750181454861,-858.66,0.00016438,2]
[366310267,1750181454871,-490.0,0.00016438,2]
[366310268,1750181454881,-490.0,0.00016438,2]
[366310269,1750181454893,-2807.7,0.00016438,2]
[366310270,1750181454903,-490.0,0.00016438,2]
[366310271,1750181454914,-490.0,0.00016438,2]
[366310272,1750181454924,-490.0,0.00016438,2]
[366310273,1750181454935,-490.0,0.00016438,2]
[366310274,1750181454945,-461.00809855,0.00016438,2]
[366310275,1750181454955,-490.0,0.00016438,2]
[366310276,1750181454964,-490.0,0.00016438,2]
[366310277,1750181454975,-490.0,0.00016438,2]
[366310278,1750181454985,-696.48,0.00016438,2]
[366310279,1750181454995,-490.0,0.00016438,2]
[366310280,1750181455007,-490.0,0.00016438,2]
[366310281,1750181455018,-490.0,0.00016438,2]
[366310282,1750181455028,-490.0,0.00016438,2]
[366310283,1750181455037,-500.0,0.00016438,2]
[366310284,1750181455047,-490.0,0.00016438,2]
[366310285,1750181455057,-500.0,0.00016438,2]
[366310286,1750181455067,-500.0,0.00016438,2]
[366310287,1750181455077,-490.0,0.00016438,2]
[366310288,1750181455087,-2817.72,0.00016438,2]
[366310289,1750181455097,-490.0,0.00016438,2]
[366310290,1750181455107,-1308.79,0.00016438,2]
[366310291,1750181455117,-1036.83,0.00016438,2]
[366310292,1750181455126,-490.0,0.00016438,2]
[366310293,1750181455136,-490.0,0.00016438,2]
[366310294,1750181455148,-868.46,0.00016438,2]
[366310295,1750181455158,-10668.68,0.00016438,2]
[366310296,1750181455167,-490.0,0.00016438,2]
[366310297,1750181455177,-2866.26,0.00016438,2]
[366310298,1750181455186,-490.0,0.00016438,2]
[366310299,1750181455196,-490.0,0.00016438,2]
[366310300,1750181455205,-490.0,0.00016438,2]
[366310301,1750181455216,-490.0,0.00016438,2]
[366310302,1750181455228,-490.0,0.00016438,2]
[366310303,1750181455237,-490.0,0.00016438,2]
[366310304,1750181455246,-490.0,0.00016438,2]
[366310305,1750181455257,-490.0,0.00016438,2]
[366310306,1750181455267,-490.0,0.00016438,2]
[366310307,1750181455276,-490.0,0.00016438,2]
[366310308,1750181455286,-523.77598358,0.00016438,2]
[366310309,1750181455301,-2146.09401642,0.00016438,2]
[366310310,1750181455311,-1141.16,0.00016438,2]
[366310311,1750181455321,-874.16,0.00016438,2]
[366310312,1750181455332,-490.0,0.00016438,2]
[366310313,1750181455342,-490.0,0.00016438,2]
[366310314,1750181455352,-490.0,0.00016438,2]
[366310315,1750181455362,-834.82788905,0.00016438,2]
[366310316,1750181455901,-2014.25010988,0.00016438,2]
[366310317,1750181455930,-341.01432691,0.00016438,2]
[366310318,1750181455942,-4487.10767416,0.00016438,2]
[366310319,1750181455952,-261.95218763,0.00016438,2]
[366310320,1750181455963,-228.04781237,0.00016438,2]
[366310321,1750181455973,-490.0,0.00016438,2]
[366310322,1750181455982,-4178.55,0.00016438,2]
[366310323,1750181455992,-673.85,0.00016438,2]
[366310324,1750181456002,-490.0,0.00016438,2]
[366310325,1750181456011,-490.0,0.00016438,2]
[366310326,1750181456021,-159.005632,0.00016438,2]
[366310327,1750181456031,-677.78,0.00016438,2]
[366310328,1750181456041,-490.0,0.00016438,2]
[366310329,1750181456051,-460.0,0.00016438,2]
[366310330,1750181456060,-490.0,0.00016438,2]
[366310331,1750181456069,-500.0,0.00016438,2]
[366310332,1750181456079,-490.0,0.00016438,2]
[366310333,1750181456089,-490.0,0.00016438,2]
[366310334,1750181456099,-490.0,0.00016438,2]
[366310335,1750181456109,-451.57177131,0.00016438,2]
[366310336,1750181456120,-490.0,0.00016438,2]
[366310337,1750181456130,-711.72,0.00016438,2]
[366310338,1750181456140,-490.0,0.00016438,2]
[366310339,1750181456153,-771.49,0.00016438,2]
[366310340,1750181456163,-2371.7,0.00016438,2]
[366310341,1750181456173,-1453.12,0.00016438,2]
[366310342,1750181456184,-490.0,0.00016438,2]
[366310343,1750181456194,-490.0,0.00016438,2]
[366310344,1750181456204,-551.24113431,0.00016438,2]
[366310345,1750181456215,-1103.39,0.00016438,2]
[366310346,1750181456230,-490.0,0.00016438,2]
[366310347,1750181456240,-490.0,0.00016438,2]
[366310348,1750181456250,-500.0,0.00016438,2]
[366310349,1750181456260,-500.0,0.00016438,2]
[366310350,1750181456270,-177.37190149,0.00016438,2]
[366310351,1750181456280,-155.51517274,0.00016438,2]
[366310352,1750181456290,-500.0,0.00016438,2]
[366310353,1750181456304,-500.0,0.00016438,2]
[366310354,1750181456314,-500.0,0.00016438,2]
[366310355,1750181456324,-181.98530666,0.00016438,2]
[366310356,1750181456334,-1671.23,0.00016438,2]
[366310357,1750181456344,-1604.98,0.00016438,2]
[366310358,1750181456354,-527.96802368,0.00016438,2]
[366310359,1750181456367,-417.81012156,0.00016438,2]
[366310360,1750181456396,-17289.34185476,0.00016438,2]
[366310361,1750181456406,-476.82226348,0.00016438,2]
[366310363,1750182348999,500.73929561,0.00024,120]
[366310370,1750182631372,-229.71,0.00013699,2]
[366310371,1750182631385,-300.0,0.00014274,2]
[366310372,1750182631396,-500.0,0.00014849,2]
[366310373,1750182631405,-506.0,0.00014849,2]
[366310374,1750182631415,-203.5675578,0.00014968,2]
[366310375,1750182631425,-300.0,0.00015068,2]
[366310376,1750182631434,-250.0,0.00015068,2]
[366310377,1750182631444,-300.0,0.00015068,2]
[366310378,1750182631454,-250.0,0.00015068,2]
[366310379,1750182631464,-504.0,0.00015151,2]
[366310380,1750182631474,-178.83,0.00015368,2]
[366310381,1750182631483,-1200.0,0.00015388,2]
[366310382,1750182631493,-163.88991343,0.00015389,2]
[366310383,1750182631504,-502.11008657,0.00015389,2]
[366310384,1750182631514,-1000.0,0.00015476,2]
[366310385,1750182631524,-200.0,0.00015532,7]
[366310386,1750182631535,-203.5675578,0.0001564,2]
[366310387,1750182631545,-300.0,0.00015677,2]
[366310388,1750182631554,-150.0,0.00015678,2]
[366310389,1750182631564,-455.27,0.00015678,2]
[366310390,1750182631574,-600.0,0.00015698,4]
[366310391,1750182631584,-455.27,0.000157,2]
[366310392,1750182631594,-300.0,0.00015834,2]
[366310393,1750182631604,-797.62,0.00015836,2]
[366310394,1750182631618,-797.62,0.00015836,2]
[366310395,1750182631629,-797.62,0.00015836,2]
[366310396,1750182631639,-797.62,0.00015836,2]
[366310397,1750182631649,-190.49,0.00015836,2]
[366310398,1750182631659,-946.77,0.00015853,2]
[366310399,1750182631668,-500.87,0.00015853,2]
[366310400,1750182631679,-923.24,0.00015861,2]
[366310401,1750182631689,-300.0,0.00015878,2]
[366310402,1750182631699,-1065.70327665,0.000159,2]
[366310403,1750182631709,-1065.70327643,0.00016038,2]
[366310404,1750182631718,-300.0,0.000161,2]
[366310405,1750182631728,-300.0,0.0001611,2]
[366310406,1750182631738,-455.27,0.0001611,2]
[366310407,1750182631747,-386.41823916,0.00016123,2]
[366310408,1750182631757,-500.0,0.00016164,2]
[366310409,1750182631766,-1065.70327643,0.00016176,2]
[366310410,1750182631775,-1797.84798979,0.00016254,2]
[366310411,1750182631785,-207.4,0.00016254,2]
[366310412,1750182631795,-945.0,0.00016264,2]
[366310413,1750182631804,-3332.0,0.00016264,2]
[366310415,1750182631814,-637.0,0.00016264,2]
[366310417,1750182631823,-802.0,0.00016264,2]
[366310419,1750182631833,-927.0,0.00016264,2]
[366310421,1750182631842,-2002.0,0.00016264,2]
[366310422,1750182631851,-558.0,0.00016264,2]
[366310425,1750182631861,-1276.0,0.00016264,2]
[366310426,1750182631871,-683.854,0.00016264,2]
[366310429,1750182631881,-1674.0,0.00016264,2]
[366310431,1750182631891,-854.0,0.00016264,2]
[366310433,1750182631900,-4091.0,0.00016264,2]
[366310434,1750182631909,-1160.0,0.00016264,2]
[366310437,1750182631920,-1008.0,0.000163,2]
[366310439,1750182631929,-203.5675578,0.00016311,2]
[366310441,1750182631939,-1065.70327643,0.00016314,2]
[366310442,1750182631948,-307.58978104,0.00016338,2]
[366310444,1750182631958,-214.75248741,0.00016338,2]
[366310446,1750182631967,-3338.90348175,0.00016338,2]
[366310448,1750182631977,-3338.90348167,0.00016375,2]
[366310450,1750182631986,-172.31,0.000164,2]
[366310452,1750182631996,-170.85,0.000164,2]
[366310454,1750182632005,-3338.90348167,0.00016411,2]
[366310456,1750182632015,-151.0,0.00016423,2]
[366310458,1750182632024,-151.0,0.00016423,2]
[366310460,1750182632034,-151.0,0.00016423,2]
[366310462,1750182632043,-5953.88378525,0.00016424,2]
[366310464,1750182632052,-1552.68,0.00016428,2]
[366310466,1750182632061,-14966.3672196,0.00016433,2]
[366310468,1750182632071,-936.2188746,0.00016433,2]
[366310470,1750182632080,-500.0,0.00016437,2]
[366310472,1750182632090,-500.0,0.00016437,2]
[366310474,1750182632099,-170.19983462,0.00016437,2]
[366310476,1750182632108,-242.73623504,0.00016437,2]
[366310478,1750182632118,-278.61635709,0.00016437,2]
[366310480,1750182632128,-580.53659811,0.00016437,2]
[366310482,1750182632138,-500.0,0.00016437,2]
[366310484,1750182632147,-500.0,0.00016437,2]
[366310486,1750182632157,-250.75754759,0.00016437,2]
[366310488,1750182632166,-150.0,0.00016437,2]
[366310490,1750182632175,-500.0,0.00016437,2]
[366310492,1750182632185,-333.99485685,0.00016437,2]
[366310494,1750182632194,-490.0,0.00016438,2]
[366310496,1750182632204,-165.231596,0.00016438,2]
[366310498,1750182632213,-252.1976209,0.00016438,2]
[366310500,1750182632223,-490.0,0.00016438,2]
[366310502,1750182632231,-490.0,0.00016438,2]
[366310504,1750182632241,-490.0,0.00016438,2]
[366310506,1750182632250,-490.0,0.00016438,2]
[366310508,1750182632259,-390.40021402,0.00016438,2]
[366310512,1750182632285,-38.59469122,0.00016438,2]
[366310514,1750182632294,-490.0,0.00016438,2]
[366310516,1750182632303,-296.11135541,0.00016438,2]
[366310518,1750182632314,-238.38933671,0.00016438,2]
[366310520,1750182632323,-261.61066329,0.00016438,2]